fUSD/lending_fUSD_20250226
["ID","MTS","AMOUNT","RATE_DAILY","PERIOD"]
[354609797,1740595895414,-1018.81,0.0003726,14]
[354609799,1740595895424,-871.69,0.0003726,14]
[354609801,1740595895433,-500.0,0.0003726,14]
[354609803,1740595895443,-500.0,0.0003726,14]
[354609805,1740595895453,-500.0,0.0003726,14]
[354609807,1740595895463,-1006.27,0.0003726,14]
[354609809,1740595895471,-1116.49,0.0003726,14]
[354609811,1740595895481,-595.91,0.0003726,14]
[354609812,1740595895490,-641.45,0.0003726,14]
[354609815,1740595895500,-216.7939917,0.0003726,14]
[354609816,1740595895511,-500.0,0.0003726,14]
[354609818,1740595895520,-772.83,0.0003726,14]
[354609820,1740595895530,-1308.99,0.0003726,14]
[354609822,1740595895539,-935.7,0.0003726,14]
[354609824,1740595895548,-872.15,0.0003726,14]
[354609826,1740595895557,-500.0,0.0003726,14]
[354609828,1740595895567,-500.0,0.0003726,14]
[354609830,1740595895576,-649.25,0.0003726,14]
[354609832,1740595895586,-500.0,0.0003726,14]
[354609834,1740595895596,-1082.33,0.0003726,14]
[354609836,1740595895606,-513.39,0.0003726,14]
[354609838,1740595895615,-500.0,0.0003726,14]
[354609840,1740595895625,-1176.81,0.0003726,14]
[354609842,1740595895634,-1686.11,0.0003726,14]
[354609844,1740595895643,-500.0,0.0003726,14]
[354609846,1740595895653,-538.09,0.0003726,14]
[354609848,1740595895662,-547.24,0.0003726,14]
[354609850,1740595895672,-500.0,0.0003726,14]
[354609852,1740595895682,-500.0,0.0003726,14]
[354609854,1740595895691,-811.61,0.0003726,14]
[354609856,1740595895701,-1804.38,0.0003726,14]
[354609858,1740595895710,-969.08,0.0003726,14]
[354609860,1740595895720,-2234.9,0.0003726,14]
[354609862,1740595895729,-877.13,0.0003726,14]
[354609864,1740595895738,-582.64,0.0003726,14]
[354609866,1740595895748,-500.0,0.0003726,14]
[354609868,1740595895757,-500.0,0.0003726,14]
[354609870,1740595895766,-500.0,0.0003726,14]
[354609872,1740595895775,-500.0,0.0003726,14]
[354609874,1740595895785,-500.0,0.0003726,14]
[354609876,1740595895794,-1855.35,0.0003726,14]
[354609878,1740595895803,-500.0,0.0003726,14]
[354609880,1740595895813,-1019.59,0.0003726,14]
[354609882,1740595895823,-2120.11,0.0003726,14]
[354609884,1740595895832,-1021.29,0.0003726,14]
[354609886,1740595895842,-1613.94,0.0003726,14]
[354609888,1740595895854,-572.27,0.0003726,14]
[354609890,1740595895864,-1105.78,0.0003726,14]
[354609892,1740595895873,-500.0,0.0003726,14]
[354609894,1740595895883,-982.48,0.0003726,14]
[354609896,1740595895893,-476.73676038,0.0003726,14]
[354609898,1740595895902,-2258.29,0.0003726,14]
[354609900,1740595895912,-586.10871284,0.0003726,14]
[354609902,1740595895922,-500.0,0.0003726,14]
[354609904,1740595895932,-500.0,0.0003726,14]
[354609906,1740595895943,-1496.14,0.0003726,14]
[354609908,1740595895956,-782.62,0.0003726,14]
[354609910,1740595895965,-1313.98,0.0003726,14]
[354609912,1740595895975,-633.15,0.0003726,14]
[354609914,1740595895984,-500.0,0.0003726,14]
[354609916,1740595895996,-1614.67,0.0003726,14]
[354609918,1740595896007,-777.94,0.0003726,14]
[354609920,1740595896017,-500.0,0.0003726,14]
[354609922,1740595896026,-1119.74,0.0003726,14]
[354609924,1740595896036,-630.05,0.0003726,14]
[354609926,1740595896046,-500.0,0.0003726,14]
[354609928,1740595896056,-500.0,0.0003726,14]
[354609930,1740595896065,-1550.01,0.0003726,14]
[354609932,1740595896074,-898.54,0.0003726,14]
[354609934,1740595896084,-500.0,0.0003726,14]
[354609936,1740595896093,-986.29,0.0003726,14]
[354609937,1740595896105,-666.5,0.0003726,14]
[354609938,1740595896114,-1800.45,0.0003726,14]
[354609939,1740595896123,-1038.19,0.0003726,14]
[354609940,1740595896132,-722.35,0.0003726,14]
[354609941,1740595896140,-777.79,0.0003726,14]
[354609942,1740595896151,-1016.47,0.0003726,14]
[354609943,1740595896160,-583.31,0.0003726,14]
[354609944,1740595896169,-746.65,0.0003726,14]
[354609945,1740595896178,-529.67,0.0003726,14]
[354609946,1740595896188,-500.0,0.0003726,14]
[354609947,1740595896197,-500.0,0.0003726,14]
[354609948,1740595896207,-806.05,0.0003726,14]
[354609949,1740595896215,-886.7,0.0003726,14]
[354609950,1740595896225,-820.28,0.0003726,14]
[354609952,1740595896234,-1501.14,0.0003726,14]
[354609954,1740595896244,-500.0,0.0003726,14]
[354609956,1740595896253,-921.34,0.0003726,14]
[354609958,1740595896262,-500.0,0.0003726,14]
[354609960,1740595896271,-699.59,0.0003726,14]
[354609962,1740595896281,-1003.76,0.0003726,14]
[354609964,1740595896291,-500.0,0.0003726,14]
[354609966,1740595896300,-1495.63,0.0003726,14]
[354609968,1740595896310,-169.2394818,0.0003726,14]
[354609970,1740595896320,-834.44,0.0003726,14]
[354609972,1740595896329,-831.3,0.0003726,14]
[354609974,1740595896339,-675.74,0.0003726,14]
[354609976,1740595896351,-917.03,0.0003726,14]
[354609978,1740595896361,-551.68,0.0003726,14]
[354609980,1740595896371,-681.62,0.0003726,14]
[354609982,1740595896381,-1958.47,0.0003726,14]
[354609984,1740595896390,-1067.6,0.0003726,14]
[354609986,1740595896399,-500.0,0.0003726,14]
[354609988,1740595896408,-636.63,0.0003726,14]
[354609990,1740595896418,-1007.51,0.0003726,14]
[354609992,1740595896428,-500.0,0.0003726,14]
[354609994,1740595896437,-826.67,0.0003726,14]
[354609996,1740595896446,-532.65,0.0003726,14]
[354609998,1740595896455,-500.0,0.0003726,14]
[354609999,1740595896465,-1255.98,0.0003726,14]
[354610002,1740595896474,-500.0,0.0003726,14]
[354610004,1740595896483,-1084.65,0.0003726,14]
[354610005,1740595896493,-510.04,0.0003726,14]
[354610007,1740595896503,-1101.48,0.0003726,14]
[354610009,1740595896512,-634.72,0.0003726,14]
[354610011,1740595896521,-842.79,0.0003726,14]
[354610013,1740595896530,-861.46,0.0003726,14]
[354610015,1740595896539,-500.0,0.0003726,14]
[354610017,1740595896549,-765.4,0.0003726,14]
[354610019,1740595896558,-604.9,0.0003726,14]
[354610021,1740595896566,-500.0,0.0003726,14]
[354610023,1740595896575,-1116.67,0.0003726,14]
[354610025,1740595896585,-500.0,0.0003726,14]
[354610027,1740595896594,-1441.7,0.0003726,14]
[354610029,1740595896604,-754.28,0.0003726,14]
[354610031,1740595896613,-929.23,0.0003726,14]
[354610034,1740595896623,-1403.66,0.0003726,14]
[354610036,1740595896632,-718.11,0.0003726,14]
[354610038,1740595896642,-1217.5,0.0003726,14]
[354610040,1740595896651,-1107.15,0.0003726,14]
[354610042,1740595896660,-1834.12,0.0003726,14]
[354610044,1740595896670,-1996.52,0.0003726,14]
[354610046,1740595896679,-902.19,0.0003726,14]
[354610048,1740595896689,-561.55,0.0003726,14]
[354610050,1740595896698,-565.94,0.0003726,14]
[354610051,1740595896707,-500.0,0.0003726,14]
[354610053,1740595896716,-500.0,0.0003726,14]
[354610055,1740595896726,-563.43,0.0003726,14]
[354610058,1740595896735,-1467.19,0.0003726,14]
[354610060,1740595896745,-1321.18,0.0003726,14]
[354610062,1740595896754,-1902.42,0.0003726,14]
[354610064,1740595896764,-500.0,0.0003726,14]
[354610066,1740595896774,-500.0,0.0003726,14]
[354610068,1740595896784,-1140.97,0.0003726,14]
[354610070,1740595896793,-528.46,0.0003726,14]
[354610072,1740595896803,-651.71,0.0003726,14]
[354610074,1740595896812,-1073.87,0.0003726,14]
[354610076,1740595896821,-1235.9,0.0003726,14]
[354610077,1740595896830,-583.0,0.0003726,14]
[354610079,1740595896839,-642.59,0.0003726,14]
[354610081,1740595896850,-500.0,0.0003726,14]
[354610083,1740595896860,-1162.07,0.0003726,14]
[354610085,1740595896869,-1175.03,0.0003726,14]
[354610087,1740595896879,-500.0,0.0003726,14]
[354610089,1740595896888,-500.0,0.0003726,14]
[354610091,1740595896898,-1123.12,0.0003726,14]
[354610093,1740595896908,-1360.38,0.0003726,14]
[354610095,1740595896918,-990.04,0.0003726,14]
[354610097,1740595896928,-500.0,0.0003726,14]
[354610099,1740595896938,-500.0,0.0003726,14]
[354610101,1740595896950,-758.81,0.0003726,14]
[354610103,1740595896960,-743.78,0.0003726,14]
[354610105,1740595896970,-1858.11,0.0003726,14]
[354610107,1740595896980,-836.2,0.0003726,14]
[354610109,1740595896992,-552.16,0.0003726,14]
[354610111,1740595897002,-957.01,0.0003726,14]
[354610113,1740595897012,-1008.01,0.0003726,14]
[354610115,1740595897022,-1949.61,0.0003726,14]
[354610117,1740595897031,-500.0,0.0003726,14]
[354610119,1740595897040,-1466.22,0.0003726,14]
[354610121,1740595897050,-1152.19,0.0003726,14]
[354610123,1740595897060,-500.0,0.0003726,14]
[354610125,1740595897071,-2482.2,0.0003726,14]
[354610127,1740595897080,-1828.52,0.0003726,14]
[354610129,1740595897090,-500.0,0.0003726,14]
[354610132,1740595897102,-527.63,0.0003726,14]
[354610134,1740595897112,-873.77,0.0003726,14]
[354610136,1740595897122,-500.0,0.0003726,14]
[354610138,1740595897132,-1665.67,0.0003726,14]
[354610140,1740595897142,-500.0,0.0003726,14]
[354610141,1740595897152,-1934.6,0.0003726,14]
[354610143,1740595897161,-786.06,0.0003726,14]
[354610145,1740595897171,-1875.12,0.0003726,14]
[354610147,1740595897181,-1075.72,0.0003726,14]
[354610149,1740595897190,-554.85,0.0003726,14]
[354610151,1740595897199,-956.32,0.0003726,14]
[354610153,1740595897209,-1163.37,0.0003726,14]
[354610155,1740595897219,-500.0,0.0003726,14]
[354610157,1740595897228,-1037.67,0.0003726,14]
[354610159,1740595897238,-2110.11,0.0003726,14]
[354610161,1740595897248,-655.67,0.0003726,14]
[354610163,1740595897258,-500.0,0.0003726,14]
[354610165,1740595897267,-519.01,0.0003726,14]
[354610167,1740595897276,-500.0,0.0003726,14]
[354610169,1740595897285,-754.12,0.0003726,14]
[354610171,1740595897295,-1595.01,0.0003726,14]
[354610173,1740595897305,-1351.39,0.0003726,14]
[354610175,1740595897314,-500.0,0.0003726,14]
[354610177,1740595897323,-883.23,0.0003726,14]
[354610179,1740595897333,-978.64,0.0003726,14]
[354610181,1740595897343,-544.48,0.0003726,14]
[354610183,1740595897354,-1282.93,0.0003726,14]
[354610185,1740595897364,-500.0,0.0003726,14]
[354610187,1740595897372,-1979.65,0.0003726,14]
[354610189,1740595897383,-500.0,0.0003726,14]
[354610191,1740595897392,-1465.82,0.0003726,14]
[354610193,1740595897401,-500.0,0.0003726,14]
[354610195,1740595897410,-1395.89,0.0003726,14]
[354610197,1740595897419,-854.86,0.0003726,14]
[354610199,1740595897428,-1505.0,0.0003726,14]
[354610201,1740595897437,-924.09,0.0003726,14]
[354610203,1740595897446,-711.08,0.0003726,14]
[354610205,1740595897455,-552.43,0.0003726,14]
[354610207,1740595897464,-895.76,0.0003726,14]
[354610209,1740595897473,-500.0,0.0003726,14]
[354610211,1740595897482,-500.0,0.0003726,14]
[354610213,1740595897491,-500.0,0.0003726,14]
[354610215,1740595897501,-932.59,0.0003726,14]
[354610217,1740595897510,-1558.86,0.0003726,14]
[354610219,1740595897519,-912.19,0.0003726,14]
[354610221,1740595897528,-551.46,0.0003726,14]
[354610223,1740595897537,-500.0,0.0003726,14]
[354610225,1740595897547,-3271.55,0.0003726,14]
[354610227,1740595897556,-3117.32,0.0003726,14]
[354610229,1740595897565,-500.0,0.0003726,14]
[354610231,1740595897575,-896.05,0.0003726,14]
[354610233,1740595897585,-1469.5,0.0003726,14]
[354610235,1740595897594,-500.0,0.0003726,14]
[354610237,1740595897606,-500.0,0.0003726,14]
[354610239,1740595897616,-500.0,0.0003726,14]
[354610241,1740595897625,-1970.34,0.0003726,14]
[354610243,1740595897634,-1219.67,0.0003726,14]
[354610245,1740595897644,-500.0,0.0003726,14]
[354610247,1740595897653,-500.0,0.0003726,14]
[354610249,1740595897663,-1258.23,0.0003726,14]
[354610251,1740595897672,-802.71,0.0003726,14]
[354610253,1740595897682,-1003.98,0.0003726,14]
[354610255,1740595897691,-1048.22,0.0003726,14]
[354610257,1740595897701,-500.0,0.0003726,14]
[354610259,1740595897711,-500.0,0.0003726,14]
[354610261,1740595897720,-500.0,0.0003726,14]
[354610263,1740595897730,-500.0,0.0003726,14]
[354610265,1740595897740,-12754.69,0.0003726,14]
[354610267,1740595897749,-760.48,0.0003726,14]
[354610269,1740595897759,-1559.74,0.0003726,14]
[354610271,1740595897768,-1039.17,0.0003726,14]
[354610273,1740595897778,-500.0,0.0003726,14]
[354610286,1740595897899,-968.47,0.0003726,14]
[354610289,1740595897913,-975.3,0.0003726,14]
[354610291,1740595897923,-884.61,0.0003726,14]
[354610293,1740595897933,-581.51,0.0003726,14]
[354610295,1740595897946,-677.65,0.0003726,14]
[354610297,1740595897957,-559.35,0.0003726,14]
[354610299,1740595897968,-500.0,0.0003726,14]
[354610301,1740595897978,-500.0,0.0003726,14]
[354610303,1740595897990,-500.0,0.0003726,14]
[354610305,1740595898001,-1068.0,0.0003726,14]
[354610307,1740595898011,-1472.3,0.0003726,14]
[354610309,1740595898021,-1096.63,0.0003726,14]
[354610311,1740595898031,-882.85,0.0003726,14]
[354610313,1740595898041,-1708.56,0.0003726,14]
[354610315,1740595898052,-505.62,0.0003726,14]
[354610317,1740595898063,-500.0,0.0003726,14]
[354610319,1740595898074,-966.9,0.0003726,14]
[354610321,1740595898084,-1141.53,0.0003726,7]
[354610323,1740595898096,-1382.5,0.0003726,14]
[354610325,1740595898109,-811.04,0.0003726,14]
[354610327,1740595898120,-669.94,0.0003726,14]
[354610329,1740595898130,-691.77,0.0003726,14]
[354610331,1740595898139,-530.0,0.0003726,14]
[354610333,1740595898149,-1910.93,0.0003726,14]
[354610335,1740595898158,-500.0,0.0003726,14]
[354610337,1740595898168,-500.0,0.0003726,14]
[354610339,1740595898177,-874.49,0.0003726,14]
[354610341,1740595898187,-776.22,0.0003726,14]
[354610343,1740595898197,-2493.41,0.0003726,14]
[354610345,1740595898206,-811.0,0.0003726,14]
[354610347,1740595898216,-2143.28,0.0003726,14]
[354610349,1740595898226,-2617.36,0.0003726,14]
[354610351,1740595898235,-1621.78,0.0003726,14]
[354610353,1740595898248,-500.0,0.0003726,14]
[354610355,1740595898257,-500.0,0.0003726,14]
[354610357,1740595898267,-2319.53,0.0003726,14]
[354610359,1740595898276,-500.0,0.0003726,14]
[354610361,1740595898286,-500.0,0.0003726,14]
[354610363,1740595898295,-529.04,0.0003726,14]
[354610365,1740595898305,-1163.2,0.0003726,14]
[354610367,1740595898315,-1841.79,0.0003726,14]
[354610369,1740595898331,-768.45,0.0003726,14]
[354610371,1740595898346,-500.0,0.0003726,14]
[354610373,1740595898367,-500.0,0.0003726,14]
[354610375,1740595898377,-500.0,0.0003726,14]
[354610377,1740595898388,-500.0,0.0003726,14]
[354610379,1740595898399,-911.1,0.0003726,14]
[354610381,1740595898409,-413.69947762,0.0003726,14]
[354610383,1740595898420,-1280.98,0.0003726,14]
[354610385,1740595898431,-2143.46,0.0003726,14]
[354610387,1740595898443,-1855.75,0.0003726,14]
[354610389,1740595898457,-500.0,0.0003726,14]
[354610391,1740595898468,-873.58,0.0003726,14]
[354610393,1740595898479,-939.46,0.0003726,14]
[354610395,1740595898490,-500.0,0.0003726,14]
[354610397,1740595898502,-500.0,0.0003726,14]
[354610399,1740595898513,-1902.32,0.0003726,14]
[354610401,1740595898523,-500.0,0.0003726,14]
[354610403,1740595898534,-1142.01,0.0003726,14]
[354610405,1740595898544,-938.37,0.0003726,14]
[354610408,1740595898558,-800.79,0.0003726,14]
[354610410,1740595898568,-512.47,0.0003726,14]
[354610412,1740595898578,-2507.28,0.0003726,2]
[354610414,1740595898587,-1981.71,0.0003726,14]
[354610415,1740595898599,-731.9,0.0003726,14]
[354610417,1740595898608,-500.0,0.0003726,14]
[354610420,1740595898618,-1276.51,0.0003726,14]
[354610422,1740595898628,-708.24,0.0003726,14]
[354610424,1740595898638,-500.0,0.0003726,14]
[354610426,1740595898648,-2733.74,0.0003726,14]
[354610428,1740595898660,-2252.01,0.0003726,14]
[354610429,1740595898670,-1022.27,0.0003726,14]
[354610432,1740595898680,-891.14,0.0003726,14]
[354610434,1740595898690,-500.0,0.0003726,14]
[354610436,1740595898700,-642.98,0.0003726,14]
[354610438,1740595898709,-552.36,0.0003726,14]
[354610440,1740595898718,-630.12,0.0003726,14]
[354610441,1740595898728,-500.0,0.0003726,14]
[354610444,1740595898738,-1991.31,0.0003726,14]
[354610445,1740595898747,-1294.07,0.0003726,14]
[354610446,1740595898758,-1853.21,0.0003726,14]
[354610447,1740595898769,-630.96,0.0003726,14]
[354610448,1740595898780,-1573.28,0.0003726,14]
[354610449,1740595898791,-2426.57,0.0003726,14]
[354610450,1740595898801,-2490.78,0.0003726,14]
[354610451,1740595898811,-1150.32,0.0003726,14]
[354610452,1740595898821,-715.02,0.0003726,14]
[354610453,1740595898831,-3484.94,0.0003726,14]
[354610454,1740595898841,-500.0,0.0003726,14]
[354610455,1740595898853,-2771.33,0.0003726,14]
[354610456,1740595898863,-500.0,0.0003726,14]
[354610457,1740595898874,-500.0,0.0003726,14]
[354610459,1740595898884,-1596.62,0.0003726,14]
[354610461,1740595898895,-1876.78,0.0003726,14]
[354610463,1740595898905,-1560.4,0.0003726,14]
[354610465,1740595898915,-1676.26,0.0003726,14]
[354610467,1740595898925,-6192.85,0.0003726,14]
[354610469,1740595898935,-647.32,0.0003726,14]
[354610471,1740595898947,-500.0,0.0003726,14]
[354610473,1740595898957,-1726.29,0.0003726,14]
[354610475,1740595898968,-2725.95,0.0003726,14]
[354610477,1740595898980,-563.72,0.0003726,14]
[354610479,1740595898992,-944.42,0.0003726,14]
[354610481,1740595899006,-3837.57,0.0003726,14]
[354610483,1740595899016,-500.0,0.0003726,14]
[354610485,1740595899027,-1361.35,0.0003726,14]
[354610487,1740595899038,-1302.57,0.0003726,14]
[354610489,1740595899048,-688.53,0.0003726,14]
[354610492,1740595899059,-11693.75,0.0003726,14]
[354610493,1740595899070,-2812.52,0.0003726,14]
[354610495,1740595899080,-861.86,0.0003726,14]
[354610498,1740595899090,-3063.11,0.0003726,14]
[354610499,1740595899103,-1132.99,0.0003726,14]
[354610502,1740595899113,-500.0,0.0003726,14]
[354610504,1740595899123,-2332.02,0.0003726,14]
[354610506,1740595899132,-3032.5,0.0003726,14]
[354610508,1740595899143,-1403.52,0.0003726,14]
[354610509,1740595899153,-2514.92,0.0003726,14]
[354610512,1740595899163,-840.17,0.0003726,14]
[354610513,1740595899173,-3285.15,0.0003726,14]
[354610516,1740595899183,-1217.25,0.0003726,14]
[354610518,1740595899192,-2864.92,0.0003726,14]
[354610520,1740595899203,-829.58,0.0003726,14]
[354610522,1740595899213,-521.32,0.0003726,14]
[354610524,1740595899223,-1548.49,0.0003726,14]
[354610526,1740595899233,-1797.4,0.0003726,14]
[354610528,1740595899242,-500.0,0.0003726,14]
[354610529,1740595899252,-3783.79,0.0003726,14]
[354610531,1740595899262,-500.0,0.0003726,14]
[354610532,1740595899272,-1141.09,0.0003726,14]
[354610534,1740595899282,-577.91,0.0003726,14]
[354610536,1740595899292,-6297.9,0.0003726,14]
[354610538,1740595899301,-2194.13,0.0003726,14]
[354610540,1740595899311,-1289.77,0.0003726,14]
[354610542,1740595899321,-2625.14,0.0003726,14]
[354610544,1740595899330,-564.43,0.0003726,14]
[354610546,1740595899340,-2622.68,0.0003726,14]
[354610548,1740595899352,-3149.85,0.0003726,14]
[354610550,1740595899361,-806.4,0.0003726,14]
[354610552,1740595899372,-2632.85,0.0003726,14]
[354610554,1740595899382,-2112.2,0.0003726,14]
[354610556,1740595899391,-3833.32,0.0003726,14]
[354610558,1740595899400,-1648.8,0.0003726,14]
[354610560,1740595899410,-500.0,0.0003726,14]
[354610562,1740595899419,-5487.93,0.0003726,14]
[354610564,1740595899429,-2311.59,0.0003726,14]
[354610566,1740595899438,-974.58,0.0003726,14]
[354610567,1740595899448,-565.43,0.0003726,14]
[354610569,1740595899458,-1343.0,0.0003726,14]
[354610571,1740595899467,-11841.49,0.0003726,14]
[354610573,1740595899477,-567.13,0.0003726,14]
[354610575,1740595899486,-3413.54,0.0003726,14]
[354610577,1740595899495,-1833.27,0.0003726,14]
[354610579,1740595899505,-995.26,0.0003726,14]
[354610581,1740595899514,-7439.57,0.0003726,14]
[354610583,1740595899523,-1238.69,0.0003726,14]
[354610585,1740595899534,-3517.26,0.0003726,14]
[354610587,1740595899543,-1700.63,0.0003726,14]
[354610589,1740595899552,-2752.94,0.0003726,14]
[354610591,1740595899562,-4507.25,0.0003726,14]
[354610593,1740595899571,-1862.26,0.0003726,14]
[354610594,1740595899581,-1154.79,0.0003726,14]
[354610596,1740595899590,-639.34,0.0003726,14]
[354610598,1740595899602,-1572.85,0.0003726,14]
[354610600,1740595899612,-500.0,0.0003726,14]
[354610602,1740595899621,-3421.4,0.0003726,14]
[354610604,1740595899631,-1778.87,0.0003726,14]
[354610606,1740595899641,-1616.96,0.0003726,14]
[354610608,1740595899651,-696.16,0.0003726,14]
[354610610,1740595899660,-9182.73,0.0003726,14]
[354610612,1740595899670,-682.72,0.0003726,14]
[354610614,1740595899679,-683.41,0.0003726,14]
[354610616,1740595899689,-6709.93,0.0003726,14]
[354610618,1740595899698,-500.0,0.0003726,14]
[354610620,1740595899708,-4316.65,0.0003726,14]
[354610622,1740595899717,-682.23,0.0003726,14]
[354610624,1740595899727,-546.58,0.0003726,14]
[354610626,1740595899736,-3317.95,0.0003726,14]
[354610628,1740595899745,-1576.59,0.0003726,14]
[354610630,1740595899755,-604.02,0.0003726,14]
[354610632,1740595899764,-500.0,0.0003726,14]
[354610634,1740595899774,-876.15,0.0003726,14]
[354610636,1740595899783,-1898.38,0.0003726,14]
[354610638,1740595899792,-3418.9,0.0003726,14]
[354610640,1740595899802,-749.16,0.0003726,14]
[354610641,1740595899811,-500.0,0.0003726,14]
[354610643,1740595899821,-2938.03,0.0003726,14]
[354610645,1740595899831,-1228.02,0.0003726,14]
[354610647,1740595899842,-2258.95,0.0003726,14]
[354610650,1740595899856,-1052.77,0.0003726,14]
[354610651,1740595899866,-500.0,0.0003726,14]
[354610653,1740595899876,-932.43,0.0003726,14]
[354610655,1740595899886,-1087.18,0.0003726,14]
[354610657,1740595899897,-500.0,0.0003726,14]
[354610659,1740595899907,-3770.5,0.0003726,14]
[354610661,1740595899916,-4443.37,0.0003726,14]
[354610663,1740595899926,-841.55,0.0003726,14]
[354610665,1740595899936,-4370.98,0.0003726,14]
[354610667,1740595899949,-1077.8,0.0003726,14]
[354610669,1740595899959,-1662.55,0.0003726,14]
[354610671,1740595899968,-1684.75,0.0003726,14]
[354610673,1740595899979,-732.3,0.0003726,14]
[354610675,1740595899991,-669.42,0.0003726,14]
[354610677,1740595900001,-2153.43,0.0003726,14]
[354610679,1740595900011,-2455.03,0.0003726,14]
[354610681,1740595900020,-404.6788751,0.0003726,14]
[354610683,1740595900030,-500.0,0.0003726,14]
[354610685,1740595900039,-555.94,0.0003726,14]
[354610686,1740595900049,-8707.22,0.0003726,14]
[354610688,1740595900059,-661.77,0.0003726,14]
[354610690,1740595900069,-1962.86,0.0003726,14]
[354610692,1740595900079,-1465.58,0.0003726,14]
[354610694,1740595900089,-14121.36,0.0003726,14]
[354610696,1740595900099,-500.0,0.0003726,14]
[354610698,1740595900108,-3029.66,0.0003726,14]
[354610700,1740595900118,-3158.55,0.0003726,14]
[354610702,1740595900128,-1124.82,0.0003726,14]
[354610704,1740595900137,-677.06,0.0003726,14]
[354610735,1740595900442,-1234.59,0.0003726,14]
[354610737,1740595900459,-1087.29,0.0003726,14]
[354610739,1740595900471,-1184.83,0.0003726,14]
[354610741,1740595900490,-766.23,0.0003726,14]
[354610743,1740595900508,-527.05,0.0003726,14]
[354610745,1740595900518,-500.0,0.0003726,14]
[354610747,1740595900528,-1001.3,0.0003726,14]
[354610749,1740595900537,-617.69,0.0003726,14]
[354610751,1740595900548,-1731.67,0.0003726,14]
[354610753,1740595900559,-3138.97,0.0003726,14]
[354610754,1740595900575,-1244.63,0.0003726,14]
[354610757,1740595900591,-850.11,0.0003726,14]
[354610759,1740595900603,-2099.68,0.0003726,14]
[354610760,1740595900614,-1394.32,0.0003726,14]
[354610763,1740595900630,-3802.94,0.0003726,14]
[354610765,1740595900644,-1086.92,0.0003726,14]
[354610767,1740595900656,-1256.63,0.0003726,14]
[354610769,1740595900672,-1776.24,0.0003726,14]
[354610771,1740595900685,-772.03,0.0003726,14]
[354610773,1740595900696,-500.0,0.0003726,14]
[354610775,1740595900707,-500.0,0.0003726,14]
[354610777,1740595900716,-773.62,0.0003726,14]
[354610779,1740595900726,-666.36,0.0003726,14]
[354610781,1740595900736,-1317.17,0.0003726,14]
[354610783,1740595900745,-500.0,0.0003726,14]
[354610785,1740595900755,-500.0,0.0003726,14]
[354610787,1740595900765,-2961.3,0.0003726,14]
[354610789,1740595900774,-1507.85,0.0003726,14]
[354610791,1740595900783,-4383.06,0.0003726,14]
[354610793,1740595900793,-1264.32,0.0003726,14]
[354610795,1740595900802,-1388.89,0.0003726,14]
[354610797,1740595900811,-556.93,0.0003726,14]
[354610799,1740595900821,-3155.81,0.0003726,14]
[354610801,1740595900831,-561.98,0.0003726,14]
[354610803,1740595900841,-2270.77,0.0003726,14]